bitfinex/quotes_BTCUSD_20240818
["timestamp","ask_amount","ask_price","bid_price","bid_amount"]
[1723968188604,0.002826,59629.0,59628.0,3.10674221]
[1723968188804,0.002826,59629.0,59628.0,3.0815718]
[1723968189459,0.002826,59629.0,59628.0,3.00606105]
[1723968189663,0.002826,59629.0,59628.0,2.90330547]
[1723968189872,0.002826,59629.0,59628.0,3.08156806]
[1723968190524,0.002826,59629.0,59628.0,3.00605851]
[1723968191559,0.002826,59629.0,59628.0,2.97103282]
[1723968191763,0.002826,59629.0,59628.0,3.00605652]
[1723968192380,0.002826,59629.0,59628.0,2.94725602]
[1723968192820,0.002826,59629.0,59628.0,2.94647452]
[1723968194752,0.002826,59629.0,59628.0,2.4738954]
[1723968194959,0.002826,59629.0,59628.0,2.38992674]
[1723968195159,0.002826,59629.0,59628.0,2.62471574]
[1723968195600,0.002826,59629.0,59628.0,2.38992674]
[1723968195809,0.002826,59629.0,59628.0,2.62471574]
[1723968196595,0.002826,59629.0,59628.0,2.38992674]
[1723968197031,0.002826,59629.0,59628.0,2.62471574]
[1723968197232,0.002826,59629.0,59628.0,2.38992674]
[1723968197445,0.002826,59629.0,59628.0,2.62471574]
[1723968198048,0.002826,59629.0,59628.0,2.38992674]
[1723968198184,0.002826,59629.0,59628.0,2.38992855]
[1723968199700,0.002826,59629.0,59628.0,2.13213955]
[1723968199903,0.002826,59629.0,59628.0,2.36692855]
[1723968200123,0.002826,59629.0,59628.0,2.31261031]
[1723968200324,0.002826,59629.0,59628.0,2.31659287]
[1723968200500,0.120218,59629.0,59628.0,1.95516944]
[1723968200758,0.120218,59629.0,59628.0,1.76324694]
[1723968200759,0.355003,59629.0,59628.0,1.76324694]
[1723968200962,0.589788,59629.0,59628.0,1.76324694]
[1723968201111,0.355003,59629.0,59628.0,1.76324694]
[1723968202808,0.436803,59629.0,59628.0,0.26480893]
[1723968203036,1.07972754,59629.0,59628.0,0.229784]
[1723968203439,1.07972754,59629.0,59628.0,0.2089075]
[1723968203641,1.19271905,59629.0,59628.0,0.2089075]
[1723968203844,1.49279389,59629.0,59628.0,0.2089075]
[1723968204090,1.50056038,59629.0,59628.0,0.2009075]
[1723968204314,1.50256038,59629.0,59628.0,0.2009075]
[1723968204518,1.42927903,59629.0,59628.0,0.2009075]
[1723968204725,1.42727903,59629.0,59628.0,0.2009075]
[1723968204928,1.42627903,59629.0,59628.0,0.2019075]
[1723968205339,1.44027903,59629.0,59628.0,0.2019075]
[1723968206133,1.49036376,59629.0,59628.0,0.2019075]
[1723968206480,1.48636376,59629.0,59628.0,0.2009075]
[1723968207085,1.49236376,59629.0,59628.0,0.2019075]
[1723968207245,1.44227903,59629.0,59628.0,0.2019075]
[1723968207647,1.36047903,59629.0,59628.0,1.7019075]
[1723968208941,1.44227903,59629.0,59628.0,1.7019075]
[1723968210938,1.44227903,59629.0,59628.0,0.2019075]
[1723968211354,1.44227903,59629.0,59628.0,1.7019075]
[1723968214261,1.44327903,59629.0,59628.0,1.7019075]
[1723968214496,1.44327903,59629.0,59628.0,0.2019075]
[1723968214732,1.44227903,59629.0,59628.0,0.2019075]
[1723968214940,1.44227903,59629.0,59628.0,1.7019075]
[1723968217930,1.44227903,59629.0,59628.0,0.2019075]
[1723968218370,1.44047903,59629.0,59628.0,1.7019075]
[1723968220052,1.34891254,59629.0,59628.0,1.7019075]
[1723968220257,1.11412754,59629.0,59628.0,1.7019075]
[1723968220861,1.10012754,59629.0,59628.0,1.7019075]
[1723968221064,1.09412754,59629.0,59628.0,1.7009075]
[1723968221273,1.10812754,59629.0,59628.0,1.7009075]
[1723968221472,1.10812754,59629.0,59628.0,1.7019075]
[1723968221473,1.19492754,59629.0,59628.0,1.7019075]
[1723968225295,1.19492754,59629.0,59628.0,1.7774075]
[1723968227199,0.87834254,59629.0,59628.0,1.7774075]
[1723968227407,0.54355754,59629.0,59628.0,1.8422075]
[1723968228221,0.372003,59629.0,59628.0,1.86308617]
[1723968228418,0.372003,59629.0,59628.0,1.86308632]
[1723968228860,0.606788,59629.0,59628.0,1.86308632]
[1723968229097,0.372003,59629.0,59628.0,1.86308632]
[1723968229297,0.606788,59629.0,59628.0,1.86308632]
[1723968229707,0.606788,59629.0,59628.0,1.8422075]
[1723968229911,0.606788,59629.0,59628.0,1.86308641]
[1723968230117,0.606788,59629.0,59628.0,1.86308637]
[1723968230326,0.606788,59629.0,59628.0,1.8630864]
[1723968233767,0.606788,59629.0,59628.0,1.86308663]
[1723968234746,0.606788,59629.0,59628.0,1.8422075]
[1723968235170,0.606788,59629.0,59628.0,1.86308703]
[1723968235300,0.606788,59629.0,59628.0,1.86308702]
[1723968235505,1.09492754,59629.0,59628.0,1.79828702]
[1723968235732,0.86014254,59629.0,59628.0,1.7019075]
[1723968235938,1.09492754,59629.0,59628.0,1.7019075]
[1723968238004,1.10506771,59629.0,59628.0,1.7019075]
[1723968240076,1.10506771,59629.0,59628.0,0.2019075]
[1723968240477,1.10506771,59629.0,59628.0,1.7019075]
[1723968242545,1.12868009,59629.0,59628.0,0.2019075]
[1723968242755,1.67737228,59629.0,59628.0,0.2019075]
[1723968242885,1.68137228,59629.0,59628.0,0.2019075]
[1723968243085,1.51974321,59629.0,59628.0,0.2019075]
[1723968243340,1.92810732,59629.0,59628.0,0.2019075]
[1723968243545,1.85292682,59629.0,59628.0,0.2019075]
[1723968244489,1.95316593,59629.0,59628.0,0.2019075]
[1723968245223,1.85292682,59629.0,59628.0,0.2019075]
[1723968245627,1.94918131,59629.0,59628.0,0.2019075]
[1723968246107,1.69582677,59629.0,59628.0,0.2019075]
[1723968246308,1.67643771,59629.0,59628.0,0.2019075]
[1723968246509,1.67943771,59629.0,59628.0,0.2019075]
[1723968246709,1.67643771,59629.0,59628.0,0.2019075]
[1723968247112,1.68037228,59629.0,59628.0,0.2019075]
[1723968247292,1.80667116,59629.0,59628.0,0.2019075]
[1723968248148,1.80267116,59629.0,59628.0,0.2019075]
[1723968249504,1.80173659,59629.0,59628.0,0.2019075]
[1723968249723,1.321444,59623.0,59622.0,0.0009086]
[1723968249932,1.72673806,59623.0,59622.0,0.0009086]
[1723968250380,1.72773806,59623.0,59622.0,0.0009086]
[1723968250599,1.72973806,59623.0,59622.0,0.0009086]
[1723968250947,1.72673806,59623.0,59622.0,0.0009086]
[1723968251352,1.73173806,59623.0,59622.0,0.0019086]
[1723968252170,1.68159854,59623.0,59622.0,0.0019086]
[1723968252381,1.69379854,59623.0,59622.0,0.0019086]
[1723968252770,1.45899054,59623.0,59622.0,0.0019086]
[1723968253177,1.52622554,59623.0,59622.0,0.0019086]
[1723968253622,1.49622554,59623.0,59622.0,0.0019086]
[1723968254609,1.49622554,59623.0,59622.0,0.0815086]
[1723968254610,1.12231709,59623.0,59622.0,0.0815086]
[1723968254835,1.11238254,59623.0,59622.0,0.0815086]
[1723968255031,1.11238254,59623.0,59622.0,1.5815086]
[1723968257438,1.19418254,59623.0,59622.0,1.5815086]
[1723968260343,1.43079054,59623.0,59622.0,1.5019086]
[1723968261569,1.43079054,59623.0,59622.0,0.0019086]
[1723968262390,1.46079054,59623.0,59622.0,0.0019086]
[1723968262577,1.45899054,59623.0,59622.0,0.0019086]
[1723968263919,1.69379854,59623.0,59622.0,0.0019086]
[1723968264117,1.45999054,59623.0,59622.0,0.0019086]
[1723968264321,1.46199054,59623.0,59622.0,0.0019086]
[1723968264584,1.86692414,59623.0,59622.0,0.0019086]
[1723968264785,1.86672414,59623.0,59622.0,0.0019086]
[1723968265205,1.63191614,59623.0,59622.0,0.0019086]
[1723968265380,1.63091614,59623.0,59622.0,0.0019086]
[1723968265582,1.37719054,59623.0,59622.0,0.0019086]
[1723968266590,1.45899054,59623.0,59622.0,0.0019086]
[1723968266789,1.45899054,59623.0,59622.0,0.0649086]
[1723968267189,1.45899054,59623.0,59622.0,0.0019086]
[1723968277307,1.50911304,59623.0,59622.0,0.0019086]
[1723968278207,1.45899054,59623.0,59622.0,0.0019086]
[1723968278632,1.63054508,59623.0,59622.0,0.0019086]
[1723968279089,1.45899054,59623.0,59622.0,0.0019086]
[1723968279311,1.53417429,59623.0,59622.0,0.0019086]
[1723968279936,1.45899054,59623.0,59622.0,0.0019086]
[1723968280186,1.53417429,59623.0,59622.0,0.0019086]
[1723968280633,1.45899054,59623.0,59622.0,0.0019086]
[1723968281267,1.79413232,59623.0,59622.0,0.0019086]
[1723968281478,1.96379409,59623.0,59622.0,0.0019086]
[1723968283210,1.86346031,59623.0,59622.0,0.0019086]
[1723968284289,1.98887753,59623.0,59622.0,0.0019086]
[1723968287461,1.86346031,59623.0,59622.0,0.0019086]
[1723968287665,1.69379854,59623.0,59622.0,0.0019086]
[1723968287908,1.69379854,59623.0,59622.0,0.0818086]
[1723968288156,1.69379854,59623.0,59622.0,0.1483086]
[1723968288354,1.45899054,59623.0,59622.0,0.1483086]
[1723968290086,1.69379854,59623.0,59622.0,0.1483086]
[1723968290332,1.45899054,59623.0,59622.0,0.1483086]
[1723968291809,1.45899054,59623.0,59622.0,1.6483086]
[1723968293530,1.69379854,59623.0,59622.0,1.6483086]
[1723968293662,1.45899054,59623.0,59622.0,1.6483086]
[1723968294062,1.69679854,59623.0,59622.0,1.6483086]
[1723968294281,1.46572511,59623.0,59622.0,0.0019086]
[1723968294911,1.70053311,59623.0,59622.0,0.0019086]
[1723968296156,1.69953311,59623.0,59622.0,0.0019086]
[1723968296514,1.70053311,59623.0,59622.0,0.0019086]
[1723968298970,1.90053311,59623.0,59622.0,0.0019086]
[1723968299312,1.92253311,59623.0,59622.0,0.0019086]
[1723968299864,1.92353311,59623.0,59622.0,0.0019086]
[1723968300068,1.92253311,59623.0,59622.0,0.0019086]
[1723968300271,1.92253311,59623.0,59622.0,0.1483086]
[1723968300272,1.37719054,59623.0,59622.0,0.1483086]
[1723968300475,1.50280087,59623.0,59622.0,0.1483086]
[1723968300679,1.50280087,59623.0,59622.0,1.6483086]
[1723968301304,1.50280087,59623.0,59622.0,0.1483086]
[1723968302244,1.59087263,59623.0,59622.0,0.1483086]
[1723968302760,1.67167263,59623.0,59622.0,0.1483086]
[1723968302960,1.67467263,59623.0,59622.0,0.1483086]
[1723968303608,1.67468472,59623.0,59622.0,0.1483086]
[1723968303756,1.58461296,59623.0,59622.0,0.1483086]
[1723968304396,1.55950376,59623.0,59622.0,0.1483086]
[1723968304770,1.45899054,59623.0,59622.0,0.1483086]
[1723968305302,1.53437762,59623.0,59622.0,0.1483086]
[1723968305511,1.53437762,59623.0,59618.0,0.00047177]
[1723968305512,0.00093457,59619.0,59618.0,3.7e-07]
[1723968305736,1.2365483,59619.0,59618.0,3.7e-07]
[1723968305940,1.97994321,59619.0,59618.0,3.7e-07]
[1723968306142,1.8291963,59619.0,59618.0,3.7e-07]
[1723968306344,2.00255084,59619.0,59618.0,3.7e-07]
[1723968306551,2.26115084,59619.0,59618.0,3.7e-07]
[1723968306763,2.0985963,59619.0,59618.0,3.7e-07]
[1723968307131,2.1015963,59619.0,59618.0,3.7e-07]
[1723968307337,2.1085963,59619.0,59618.0,3.7e-07]
[1723968307533,1.60735457,59615.0,59614.0,0.009086]
[1723968307741,2.13774911,59615.0,59614.0,0.009086]
[1723968308172,2.13474911,59615.0,59614.0,0.009086]
[1723968308376,2.13374911,59615.0,59614.0,0.009086]
[1723968308716,2.13574911,59615.0,59614.0,0.009086]
[1723968308968,2.14974911,59615.0,59614.0,0.010086]
[1723968309414,2.06594911,59615.0,59614.0,0.010086]
[1723968309619,2.13974911,59615.0,59614.0,0.010086]
[1723968309821,2.13874911,59615.0,59614.0,0.010086]
[1723968309966,2.14274911,59615.0,59614.0,0.010086]
[1723968310650,2.27527565,59615.0,59614.0,0.010086]
[1723968310867,2.27127565,59615.0,59614.0,0.010086]
[1723968311234,2.28136243,59615.0,59614.0,0.010086]
[1723968311601,2.28336243,59615.0,59614.0,0.010086]
[1723968311800,2.28536243,59615.0,59614.0,0.010086]
[1723968314188,2.15283589,59615.0,59614.0,0.010086]
[1723968314371,2.17583589,59615.0,59614.0,0.010086]
[1723968315562,2.29728095,59615.0,59614.0,0.010086]
[1723968316765,2.25973195,59615.0,59614.0,0.151486]
[1723968318290,2.05879738,59615.0,59614.0,0.151486]
[1723968318485,1.90575738,59615.0,59614.0,0.151486]
[1723968318733,1.78031232,59615.0,59614.0,0.151486]
[1723968318894,1.33367232,59615.0,59614.0,0.151486]
[1723968319545,1.38384293,59615.0,59614.0,0.151486]
[1723968319746,1.46564293,59615.0,59614.0,0.151486]
[1723968319970,1.40147232,59615.0,59614.0,1.651486]
[1723968320172,1.50147232,59615.0,59614.0,1.651486]
[1723968320822,1.48747232,59615.0,59614.0,1.650486]
[1723968321010,1.42022132,59615.0,59614.0,1.650486]
[1723968321214,1.43422132,59615.0,59614.0,1.650486]
[1723968321417,1.50146232,59615.0,59614.0,1.650486]
[1723968322023,1.51546232,59615.0,59614.0,1.650486]
[1723968322405,1.44822132,59615.0,59614.0,1.650486]
[1723968322769,1.44822132,59615.0,59614.0,0.150486]
[1723968323366,1.44822132,59615.0,59614.0,1.650486]
[1723968324293,1.43422132,59615.0,59614.0,1.650486]
[1723968324902,1.44722132,59615.0,59614.0,1.650486]
[1723968325313,1.18829454,59615.0,59614.0,1.650486]
[1723968325518,1.20229454,59615.0,59614.0,1.650486]
[1723968326533,1.20229454,59615.0,59614.0,0.150486]
[1723968326844,1.20229454,59615.0,59614.0,1.650486]
[1723968336091,1.20203219,59615.0,59614.0,1.642186]
[1723968336680,1.12023219,59615.0,59614.0,1.642186]
[1723968341608,0.94867765,59615.0,59614.0,1.642186]
[1723968341958,0.14415765,59615.0,59614.0,1.642186]
[1723968342160,0.37899765,59615.0,59614.0,1.66306896]
[1723968342393,0.37899765,59615.0,59614.0,1.68395288]
[1723968343054,0.36499765,59615.0,59614.0,1.68395288]
[1723968343934,0.35199765,59615.0,59614.0,1.68395288]
[1723968344172,0.58683765,59615.0,59614.0,1.68395288]
[1723968344414,0.59383765,59615.0,59614.0,1.68395288]
[1723968344645,0.60583765,59615.0,59614.0,1.68395288]
[1723968345877,0.77739219,59615.0,59614.0,1.68395288]
[1723968346078,0.77712984,59615.0,59614.0,1.68395288]
[1723968346293,1.01196984,59615.0,59614.0,1.6839539]
[1723968347119,0.77712984,59615.0,59614.0,1.6839539]
[1723968347345,0.77712984,59615.0,59614.0,1.72463443]
[1723968347559,0.77712984,59615.0,59614.0,1.6839539]
[1723968347958,0.6055753,59615.0,59614.0,1.6839539]
[1723968349476,1.32860984,59615.0,59614.0,0.0425539]
[1723968349647,1.56773332,59615.0,59614.0,0.02166992]
[1723968350055,1.87776604,59615.0,59614.0,0.02166992]
[1723968350256,1.87776604,59615.0,59614.0,0.000786]
[1723968350418,1.74164256,59615.0,59614.0,0.000786]
[1723968350618,1.66644984,59615.0,59614.0,0.000786]
[1723968351101,1.74161766,59615.0,59614.0,0.000786]
[1723968351307,1.66644984,59615.0,59614.0,0.000786]
[1723968351863,1.74161727,59615.0,59614.0,0.000786]
[1723968352044,1.66644984,59615.0,59614.0,0.000786]
[1723968352570,1.74161594,59615.0,59614.0,0.000786]
[1723968352767,1.67251384,59615.0,59614.0,0.000786]
[1723968352967,1.74767966,59615.0,59614.0,0.000786]
[1723968353172,1.98699706,59615.0,59614.0,1e-06]
[1723968353373,2.06210944,59615.0,59614.0,1e-06]
[1723968353589,1.93483124,59615.0,59614.0,1e-06]
[1723968353766,1.70199124,59615.0,59614.0,1e-06]
[1723968353966,2.10838578,59615.0,59614.0,1e-06]
[1723968354165,2.10138578,59615.0,59614.0,1e-06]
[1723968354571,1.93183124,59615.0,59614.0,1e-06]
[1723968354921,1.94583124,59615.0,59614.0,1e-06]
[1723968356482,1.71099124,59615.0,59614.0,1e-06]
[1723968356685,1.71099124,59615.0,59609.0,4e-05]
[1723968356686,0.15416357,59610.0,59609.0,4e-05]
[1723968356908,0.9143718,59610.0,59609.0,4e-05]
[1723968357065,1.50913184,59610.0,59609.0,4e-05]
[1723968357477,1.97884984,59610.0,59609.0,4e-05]
[1723968357703,2.00184984,59610.0,59609.0,4e-05]
[1723968358111,2.01482709,59610.0,59609.0,4e-05]
[1723968358661,1.90363966,59610.0,59609.0,4e-05]
[1723968359479,2.00376016,59610.0,59609.0,4e-05]
[1723968360410,1.9843438,59610.0,59609.0,4e-05]
[1723968360617,0.03273457,59602.0,59591.0,0.00864503]
[1723968360823,0.03273457,59602.0,59592.0,0.0751]
[1723968360824,0.352378,59595.0,59592.0,0.0751]
[1723968361015,1.32868954,59595.0,59592.0,0.0751]
[1723968361216,1.56360854,59595.0,59592.0,0.0751]
[1723968362717,1.64540854,59595.0,59594.0,0.072364]
[1723968363026,1.33853336,59595.0,59594.0,0.072364]
[1723968363206,1.65525236,59595.0,59594.0,0.009064]
[1723968363406,1.66925236,59595.0,59594.0,0.009024]
[1723968363785,1.73651836,59595.0,59594.0,0.009024]
[1723968363985,1.75051836,59595.0,59594.0,0.009024]
[1723968364395,1.75051836,59595.0,59594.0,0.072324]
[1723968364396,1.75136295,59595.0,59594.0,0.072324]
[1723968366160,1.75409752,59595.0,59594.0,0.009024]
[1723968366364,1.67049752,59595.0,59594.0,0.009024]
[1723968367392,1.75229752,59595.0,59594.0,0.009024]
[1723968368064,1.75203517,59595.0,59594.0,0.009024]
[1723968368470,1.75603517,59595.0,59594.0,0.009024]
[1723968368666,1.98875417,59595.0,59594.0,0.009024]
[1723968368870,1.99275417,59595.0,59594.0,0.009024]
[1723968372025,1.99095417,59595.0,59594.0,0.009024]
[1723968372164,1.98695417,59595.0,59594.0,0.009024]
[1723968372578,1.98895417,59595.0,59594.0,0.009024]
[1723968372827,1.99095417,59595.0,59594.0,0.009024]
[1723968373347,1.99042576,59595.0,59594.0,0.009024]
[1723968373884,1.98842576,59595.0,59594.0,0.009024]
[1723968374087,1.99042576,59595.0,59594.0,0.009024]
[1723968376264,2.1619803,59595.0,59594.0,0.009024]
[1723968376963,1.98642576,59595.0,59594.0,0.009024]
[1723968377308,1.98842576,59595.0,59594.0,0.009024]
[1723968377718,2.49182576,59595.0,59594.0,0.009024]
[1723968377866,2.49382576,59595.0,59594.0,0.009024]
[1723968380711,2.48982576,59595.0,59594.0,0.009024]
[1723968381667,2.60802165,59595.0,59594.0,0.009024]
[1723968382311,2.48982576,59595.0,59594.0,0.009024]
[1723968382931,2.49182576,59595.0,59594.0,0.009024]
[1723968383162,2.49356274,59595.0,59594.0,0.009024]
[1723968384973,2.48956274,59595.0,59594.0,0.009024]
[1723968385419,2.49156274,59595.0,59594.0,0.009024]
[1723968385620,1.292269,59585.0,59584.0,0.0011077]
[1723968385826,1.96722354,59585.0,59584.0,0.0011077]
[1723968386027,2.06722354,59585.0,59584.0,0.0011077]
[1723968386230,2.06822354,59585.0,59584.0,0.0011077]
[1723968386464,2.24177808,59585.0,59584.0,0.0011077]
[1723968386663,2.32551265,59585.0,59584.0,0.0011077]
[1723968386801,2.97701524,59585.0,59584.0,7e-07]
[1723968386986,2.5997607,59585.0,59584.0,7e-07]
[1723968387188,2.5877607,59585.0,59584.0,7e-07]
[1723968387488,2.6207607,59585.0,59584.0,7e-07]
[1723968387689,2.6347607,59585.0,59584.0,7e-07]
[1723968388119,2.6377607,59585.0,59584.0,7e-07]
[1723968388345,2.80931524,59585.0,59584.0,7e-07]
[1723968388588,2.80831524,59585.0,59584.0,7e-07]
[1723968388802,2.80831524,59585.0,59568.0,0.009075]
[1723968388803,1.292549,59572.0,59568.0,0.009075]
[1723968389022,1.292549,59572.0,59569.0,0.152564]
[1723968389023,1.96943811,59572.0,59569.0,0.152564]
[1723968389222,2.06843811,59572.0,59569.0,0.152564]
[1723968389709,2.0712827,59572.0,59569.0,0.152564]
[1723968389853,2.1530827,59572.0,59569.0,0.152564]
[1723968390055,2.1550827,59572.0,59569.0,0.152564]
[1723968390414,2.1690827,59572.0,59569.0,0.152564]
[1723968390598,2.1690827,59572.0,59569.0,0.009064]
[1723968391141,2.1830827,59572.0,59569.0,0.009064]
[1723968391363,2.1790827,59572.0,59569.0,0.009064]
[1723968391818,2.1790827,59572.0,59571.0,0.078]
[1723968392120,2.17814813,59572.0,59571.0,0.1437]
[1723968392347,1.86133913,59572.0,59571.0,0.1437]
[1723968393203,1.86108196,59572.0,59571.0,0.1437]
[1723968393409,1.94288196,59572.0,59571.0,0.1437]
[1723968393988,1.86108196,59572.0,59571.0,0.1437]
[1723968394393,1.87095763,59572.0,59571.0,0.0002]
[1723968396385,1.87095763,59572.0,59571.0,0.078]
[1723968397027,1.87095763,59572.0,59571.0,0.1437]
[1723968397435,1.93825063,59572.0,59571.0,0.1437]
[1723968397861,2.14325063,59572.0,59571.0,0.1437]
[1723968399507,2.14325063,59572.0,59571.0,0.1446075]
[1723968401516,2.07595763,59572.0,59571.0,0.1446075]
[1723968403765,1.52607296,59572.0,59571.0,0.1446075]
[1723968404215,1.52607296,59572.0,59571.0,1.6446075]
[1723968404614,0.51824459,59572.0,59571.0,1.6446075]
[1723968404842,0.01484459,59572.0,59571.0,1.66550322]
[1723968405213,0.00084459,59572.0,59571.0,1.66550322]
[1723968405844,0.00084459,59572.0,59571.0,1.78300922]
[1723968406044,0.01484459,59572.0,59571.0,1.78300836]
[1723968406244,0.01484459,59572.0,59571.0,2.01802136]
[1723968406426,0.00084459,59572.0,59571.0,2.2321395]
[1723968406622,0.00084459,59572.0,59571.0,2.25303435]
[1723968406810,0.01184459,59572.0,59571.0,2.25403435]
[1723968407012,0.00084459,59572.0,59571.0,2.25403435]
[1723968407390,0.00184459,59572.0,59571.0,2.25603435]
[1723968407914,0.00158224,59572.0,59571.0,2.25603435]
[1723968408129,0.00158224,59572.0,59571.0,2.25503435]
[1723968408621,0.00158224,59572.0,59571.0,2.49104735]
[1723968408622,0.00258224,59572.0,59571.0,2.49104735]
[1723968408795,0.00258224,59572.0,59571.0,2.52610165]
[1723968409525,0.01005041,59594.0,59571.0,2.52610165]
[1723968409526,0.000825,59595.0,59588.0,0.0832]
[1723968409719,0.62924809,59589.0,59588.0,0.0832]
[1723968409921,0.17155454,59589.0,59588.0,0.0601]
[1723968410125,0.234946,59588.0,59585.0,0.0832]
[1723968410428,0.587385,59586.0,59585.0,0.0832]
[1723968410619,0.99389354,59586.0,59585.0,0.0832]
[1723968411626,0.99989354,59586.0,59585.0,0.0832]
[1723968411876,1.33484754,59586.0,59585.0,0.0832]
[1723968412088,0.42145454,59586.0,59572.0,0.02089468]
[1723968412263,0.42145454,59586.0,59571.0,0.0843075]
[1723968412264,0.117504,59572.0,59571.0,0.0843075]
[1723968412463,0.75907654,59572.0,59571.0,0.0843075]
[1723968412697,0.99408554,59572.0,59571.0,0.0843075]
[1723968413278,0.99382837,59572.0,59571.0,0.0843075]
[1723968413913,0.99482837,59572.0,59571.0,0.0843075]
[1723968414214,0.99482837,59572.0,59571.0,0.0883075]
[1723968414819,1.30973737,59572.0,59571.0,0.0051075]
[1723968415020,1.32983737,59572.0,59571.0,0.0051075]
[1723968415574,1.33891237,59572.0,59571.0,0.0051075]
[1723968421371,1.3489599,59572.0,59571.0,0.0051075]
[1723968423680,1.3489599,59572.0,59571.0,0.1484075]
[1723968423681,1.33891237,59572.0,59571.0,0.1484075]
[1723968423883,1.32983737,59572.0,59571.0,0.1484075]
[1723968424309,1.32983737,59572.0,59571.0,0.0883075]
[1723968424908,1.33066237,59572.0,59571.0,0.0883075]
[1723968426769,1.09565337,59572.0,59571.0,0.0883075]
[1723968427241,1.09565337,59572.0,59571.0,1.6484075]
[1723968433777,0.067283,59581.0,59571.0,1.5051075]
[1723968433970,0.234953,59587.0,59579.0,0.1459]
[1723968434267,0.17155454,59594.0,59585.0,0.0641]
[1723968434427,0.117467,59591.0,59590.0,0.0818]
[1723968434752,0.117467,59591.0,59590.0,0.1459]
[1723968435157,0.117467,59591.0,59590.0,1.6459]
[1723968435890,0.133467,59591.0,59590.0,1.6479]
[1723968436027,0.016,59591.0,59590.0,1.6479]
[1723968436772,0.116,59591.0,59590.0,1.6479]
[1723968437141,0.233467,59591.0,59590.0,1.6479]
[1723968437346,0.016825,59591.0,59590.0,1.765369]
[1723968437589,0.016825,59591.0,59590.0,2.000307]
[1723968437765,0.016825,59591.0,59590.0,2.235245]
[1723968437966,0.016825,59591.0,59590.0,2.000307]
[1723968438345,0.016825,59591.0,59590.0,1.765369]
[1723968438512,0.010825,59591.0,59590.0,1.764369]
[1723968438716,0.000825,59591.0,59590.0,1.763369]
[1723968438870,0.001825,59591.0,59590.0,1.772369]
[1723968439077,0.001825,59591.0,59590.0,1.777369]
[1723968439279,0.00156254,59591.0,59590.0,1.777369]
[1723968439887,3.9659,59703.0,59590.0,1.777369]
[1723968439888,0.000825,59610.0,59609.0,0.352294]
[1723968440066,0.000825,59610.0,59601.0,0.117447]
[1723968440067,0.117432,59609.0,59601.0,0.117447]
[1723968440266,0.17155454,59608.0,59602.0,0.0781]
[1723968440530,0.17155454,59608.0,59603.0,1.5]
[1723968440729,0.117441,59604.0,59603.0,1.5]
[1723968440882,0.52387854,59604.0,59603.0,1.5]
[1723968441675,0.28899554,59604.0,59603.0,1.5]
[1723968442180,0.29299554,59604.0,59603.0,1.5]
[1723968443073,0.17555454,59604.0,59603.0,1.5]
[1723968443216,0.17529129,59604.0,59603.0,1.5]
[1723968443428,0.000825,59610.0,59609.0,0.82202]
[1723968443629,0.000825,59610.0,59609.0,0.727757]
[1723968443827,0.000825,59610.0,59609.0,0.96262]
[1723968444038,0.000825,59610.0,59609.0,0.727757]
[1723968444239,0.000825,59610.0,59609.0,0.78773616]
[1723968444613,0.013825,59610.0,59609.0,0.78973616]
[1723968444816,0.013825,59610.0,59609.0,1.02459916]
[1723968445075,0.013825,59610.0,59609.0,2.227757]
[1723968445076,0.000825,59610.0,59609.0,2.227757]
[1723968445251,0.000825,59610.0,59609.0,2.124326]
[1723968445459,0.001825,59610.0,59609.0,2.252757]
[1723968446137,0.001825,59610.0,59609.0,2.238757]
[1723968447244,0.001825,59610.0,59609.0,2.227757]
[1723968447357,0.000825,59610.0,59609.0,1.992894]
[1723968447562,0.000825,59610.0,59609.0,2.018894]
[1723968447802,0.001825,59610.0,59609.0,2.018894]
[1723968448012,0.001825,59610.0,59609.0,1.770031]
[1723968448189,0.000825,59610.0,59609.0,1.758031]
[1723968448398,0.001825,59610.0,59609.0,1.784031]
[1723968449936,0.119254,59610.0,59609.0,1.6041]
[1723968450158,0.76052654,59610.0,59609.0,0.026]
[1723968450383,0.99538554,59610.0,59609.0,0.026]
[1723968450995,0.99438554,59610.0,59609.0,0.014]
[1723968451207,0.99438554,59610.0,59609.0,0.022]
[1723968451208,0.99538554,59610.0,59609.0,0.022]
[1723968451419,0.99538554,59610.0,59609.0,0.008]
[1723968451625,0.117441,59605.0,59603.0,1.5]
[1723968452770,0.234876,59606.0,59603.0,1.513]
[1723968453004,0.117441,59604.0,59603.0,1.513]
[1723968454020,0.117441,59604.0,59603.0,1.527]
[1723968454222,0.117441,59604.0,59603.0,1.514]
[1723968454504,0.117441,59604.0,59603.0,1.512]
[1723968454660,0.118441,59604.0,59603.0,1.526]
[1723968454867,0.001,59604.0,59603.0,1.514]
[1723968455300,0.002,59604.0,59603.0,1.528]
[1723968456360,0.002,59604.0,59603.0,1.722743]
[1723968456799,0.002,59604.0,59603.0,1.95763]
[1723968457877,0.000825,59610.0,59609.0,0.724657]
[1723968458092,0.000825,59610.0,59609.0,0.747657]
[1723968458442,0.000825,59610.0,59609.0,2.2685388]
[1723968459057,0.001825,59610.0,59609.0,2.2765388]
[1723968459232,0.001825,59610.0,59609.0,2.2905388]
[1723968459436,0.001825,59610.0,59609.0,2.246657]
[1723968460048,0.001825,59610.0,59609.0,2.011794]
[1723968460394,0.000825,59610.0,59609.0,2.003794]
[1723968460597,0.000825,59610.0,59609.0,2.65907454]
[1723968460813,0.000825,59610.0,59609.0,2.7029574]
[1723968461493,0.000825,59610.0,59609.0,2.6889574]
[1723968461695,0.000825,59610.0,59609.0,2.7029574]
[1723968462995,0.000825,59610.0,59609.0,2.75524739]
[1723968463403,0.000825,59610.0,59609.0,2.79028051]
[1723968464563,0.000825,59628.0,59617.0,0.194716]
[1723968464773,0.000825,59628.0,59617.0,0.85893454]
[1723968464974,0.000825,59628.0,59617.0,1.20412974]
[1723968465181,0.000825,59628.0,59617.0,2.70412974]
[1723968465291,0.000825,59628.0,59617.0,3.00353198]
[1723968465492,0.000825,59628.0,59617.0,3.12254072]
[1723968465745,0.000825,59628.0,59617.0,3.13554072]
[1723968466116,0.000825,59628.0,59617.0,3.12254072]
[1723968466353,0.000825,59628.0,59617.0,3.13654072]
[1723968466875,0.000825,59628.0,59617.0,3.02327532]
[1723968467095,0.000825,59628.0,59617.0,2.96894771]
[1723968467301,0.000825,59628.0,59617.0,3.03227532]
[1723968467475,0.000825,59628.0,59617.0,3.08673198]
[1723968467629,0.000825,59628.0,59617.0,3.02340437]
[1723968467830,0.000825,59628.0,59617.0,3.07773198]
[1723968468035,0.000825,59628.0,59627.0,0.970872]